bitfinex/quotes_SOLUSD_20251125
["timestamp","ask_amount","ask_price","bid_price","bid_amount"]
[1764059507666,8.80994492,136.15,136.12,0.54]
[1764059507970,36.38683251,136.29,136.12,0.54]
[1764059507971,5.55189892,136.2,136.15,50.0]
[1764059508267,16.308864,136.19,136.15,50.0]
[1764059508458,5.55189892,136.2,136.16,0.54]
[1764059508654,8.77000221,136.2,136.17,7.34376147]
[1764059508852,5.53000221,136.22,136.17,57.34376147]
[1764059509068,5.53000221,136.22,136.18,0.54]
[1764059510948,21.83886621,136.19,136.15,50.0]
[1764059511164,5.53000221,136.18,136.15,50.54]
[1764059511361,25.07886621,136.19,136.16,0.54]
[1764059511675,19.548864,136.19,136.16,0.54]
[1764059511855,16.308864,136.19,136.16,0.54]
[1764059512367,5.53000221,136.21,136.16,0.54]
[1764059512570,3.24,136.2,136.17,50.0]
[1764059512956,5.53000221,136.18,136.13,0.54]
[1764059513165,5.53000221,136.16,136.13,0.54]
[1764059513344,5.53000221,136.16,136.13,50.54]
[1764059513550,5.53000221,136.16,136.13,57.88589728]
[1764059513768,5.53000221,136.16,136.14,0.54]
[1764059514472,0.66,136.15,136.1,50.0]
[1764059514672,5.53000221,136.11,136.09,1.95007381]
[1764059514861,5.53000221,136.1,136.09,1.95007381]
[1764059515248,8.77000221,136.11,136.09,1.95007381]
[1764059516166,0.66,136.1,136.09,1.95007381]
[1764059516356,25.07886621,136.1,136.09,1.95007381]
[1764059516868,16.308864,136.14,136.09,15.36810798]
[1764059517070,16.308864,136.14,136.1,0.54]
[1764059517270,21.83886621,136.14,136.1,0.54]
[1764059517462,5.53000221,136.13,136.1,0.54]
[1764059518075,22.54886621,136.14,136.1,0.54]
[1764059518273,0.71,136.13,136.09,1.95007381]
[1764059518574,16.308864,136.11,136.09,1.95007381]
[1764059519167,16.308864,136.11,136.09,2.49007381]
[1764059519766,16.308864,136.11,136.09,9.83809967]
[1764059520076,3.26,136.14,136.1,50.54]
[1764059520257,3.26,136.14,136.1,0.54]
[1764059520458,9.63825776,136.11,136.09,1.95007381]
[1764059520772,25.94712176,136.12,136.09,1.95007381]
[1764059520947,16.308864,136.12,136.1,0.14216157]
[1764059521152,12.89825776,136.14,136.1,0.68216157]
[1764059521353,16.968864,136.15,136.12,0.14216157]
[1764059521577,3.26,136.17,136.12,0.14216157]
[1764059521770,27.31712176,136.18,136.14,0.14216157]
[1764059521970,3.26,136.17,136.14,0.14216157]
[1764059522250,9.63825776,136.2,136.16,0.14216157]
[1764059522596,1.99999999,136.28,136.18,50.14216157]
[1764059522597,3.26,136.22,136.18,50.14216157]
[1764059522750,9.63825776,136.23,136.18,50.14216157]
[1764059522956,29.20712176,136.23,136.2,0.14216157]
[1764059523184,9.63825776,136.22,136.2,7.48403782]
[1764059523380,3.26,136.23,136.2,8.02403782]
[1764059523564,12.89825776,136.23,136.2,8.02403782]
[1764059523768,9.63825776,136.22,136.2,0.14216157]
[1764059524285,9.63825776,136.22,136.2,7.4841528]
[1764059524459,9.63825776,136.22,136.2,0.14216157]
[1764059524659,9.63825776,136.22,136.2,7.48426628]
[1764059525283,3.97,136.23,136.2,7.48426628]
[1764059525581,9.63825776,136.22,136.2,7.48426628]
[1764059525788,9.63825776,136.21,136.19,0.14216157]
[1764059526887,9.63825776,136.2,136.19,0.14216157]
[1764059527664,9.63825776,136.21,136.2,0.14216157]
[1764059527864,12.89825776,136.22,136.2,0.14216157]
[1764059528071,9.63825776,136.22,136.2,0.14216157]
[1764059528270,9.63825776,136.23,136.2,0.68216157]
[1764059528487,12.89825776,136.23,136.2,0.68216157]
[1764059528696,12.89825776,136.23,136.2,50.68216157]
[1764059528979,12.89825776,136.23,136.2,58.02383768]
[1764059529466,9.63825776,136.23,136.2,58.02383768]
[1764059530202,16.308864,136.24,136.2,58.02383768]
[1764059530368,9.63825776,136.23,136.21,0.54]
[1764059530574,0.71,136.23,136.22,0.14216157]
[1764059530891,10.34825776,136.23,136.22,0.14216157]
[1764059531267,9.63825776,136.23,136.22,0.14216157]
[1764059532573,27.90269891,136.25,136.21,0.14216157]
[1764059532768,9.63825776,136.23,136.21,0.14216157]
[1764059533169,9.63825776,136.22,136.21,0.14216157]
[1764059533369,9.63825776,136.23,136.21,0.14216157]
[1764059533582,9.63825776,136.22,136.21,0.14216157]
[1764059534170,9.63825776,136.23,136.21,7.48376644]
[1764059534588,9.63825776,136.22,136.19,0.68216157]
[1764059534786,9.63825776,136.23,136.19,0.68216157]
[1764059534987,9.63825776,136.23,136.21,0.14216157]
[1764059535599,9.63825776,136.22,136.21,0.14216157]
[1764059536318,9.63825776,136.23,136.21,0.14216157]
[1764059536516,27.6183434,136.25,136.21,0.68216157]
[1764059536721,9.63825776,136.24,136.21,0.68216157]
[1764059536902,29.20712176,136.25,136.23,0.14216157]
[1764059537225,16.308864,136.24,136.23,0.14216157]
[1764059537390,16.308864,136.24,136.23,7.48267104]
[1764059537720,9.63825776,136.25,136.23,0.14216157]
[1764059537917,26.65712176,136.24,136.23,0.14216157]
[1764059539097,17.018864,136.24,136.21,0.14216157]
[1764059539294,12.89825776,136.23,136.21,7.48375916]
[1764059539609,12.89825776,136.23,136.21,8.02375916]
[1764059539812,3.26,136.23,136.21,7.48375916]
[1764059539994,9.63825776,136.23,136.21,0.14216157]
[1764059540197,29.20712176,136.24,136.21,7.48357815]
[1764059540420,25.94712176,136.24,136.21,7.48357815]
[1764059540625,26.65712176,136.24,136.21,7.48357815]
[1764059542428,22.05801257,136.26,136.23,0.14216157]
[1764059542599,0.71,136.27,136.23,0.14216157]
[1764059542792,0.71,136.27,136.23,0.68216157]
[1764059542993,10.34825776,136.27,136.23,0.14216157]
[1764059543500,10.34825776,136.27,136.23,0.68216157]
[1764059543692,9.63825776,136.29,136.26,0.14216157]
[1764059544100,9.63825776,136.29,136.28,0.14216157]
[1764059544416,9.63825776,136.31,136.28,0.14216157]
[1764059544591,26.63712176,136.31,136.28,0.14216157]
[1764059544792,9.63825776,136.31,136.28,0.14216157]
[1764059545214,10.32825776,136.31,136.28,0.14216157]
[1764059545417,10.32825776,136.31,136.21,45.65723634]
[1764059545418,25.94712176,136.29,136.23,107.88029672]
[1764059545727,9.63825776,136.28,136.23,107.88029672]
[1764059546215,8.02789731,136.28,136.24,0.68216157]
[1764059546412,10.32825776,136.28,136.24,0.68216157]
[1764059546597,9.63825776,136.28,136.24,0.14216157]
[1764059546918,9.63825776,136.28,136.26,0.14216157]
[1764059548321,9.63825776,136.27,136.26,0.14216157]
[1764059548922,9.63825776,136.27,136.25,0.14216157]
[1764059549214,8.02785784,136.28,136.25,0.14216157]
[1764059549420,17.6661156,136.28,136.25,0.14216157]
[1764059549827,9.63825776,136.26,136.21,118.89330736]
[1764059550011,9.63825776,136.25,136.21,57.88137394]
[1764059550324,9.63825776,136.24,136.21,57.34137394]
[1764059550493,9.63825776,136.24,136.2,7.34209056]
[1764059550695,10.32825776,136.24,136.2,7.34209056]
[1764059550900,10.32825776,136.24,136.21,0.14216157]
[1764059551596,17.66846437,136.24,136.2,7.88209056]
[1764059551809,9.63825776,136.23,136.2,57.88209056]
[1764059552115,7.34020661,136.24,136.2,57.88209056]
[1764059552317,16.97846437,136.24,136.2,57.88209056]
[1764059552522,17.66846437,136.24,136.21,0.14216157]
[1764059552825,9.63825776,136.23,136.21,0.14216157]
[1764059553328,10.32825776,136.22,136.17,57.34355272]
[1764059553620,9.63825776,136.2,136.18,0.14216157]
[1764059553828,9.63825776,136.2,136.17,57.34355272]
[1764059554399,9.63825776,136.2,136.18,0.14216157]
[1764059554805,16.97990358,136.21,136.18,0.14216157]
[1764059555100,17.66990358,136.21,136.18,0.14216157]
[1764059555621,10.32825776,136.21,136.18,7.4853167]
[1764059555822,9.63825776,136.21,136.18,7.4853167]
[1764059556016,25.94712176,136.22,136.2,0.14216157]
[1764059556222,9.63825776,136.21,136.2,0.14216157]
[1764059556718,10.32825776,136.21,136.2,0.14216157]
[1764059556914,10.32825776,136.21,136.14,50.0]
[1764059556915,36.30819795,136.21,136.14,50.0]
[1764059557227,9.63825776,136.19,136.15,50.0]
[1764059557399,9.63825776,136.19,136.16,0.14216157]
[1764059557606,10.32825776,136.19,136.16,0.14216157]
[1764059557901,9.63825776,136.18,136.15,50.0]
[1764059558104,9.63825776,136.18,136.14,7.88524211]
[1764059558322,16.308864,136.18,136.16,0.14216157]
[1764059558613,9.63825776,136.2,136.16,0.14216157]
[1764059558829,0.69,136.19,136.16,0.14216157]
[1764059559429,10.32825776,136.19,136.16,0.14216157]
[1764059560327,0.69,136.19,136.16,7.48642259]
[1764059560830,10.32825776,136.19,136.16,7.48642259]
[1764059561123,8.03270871,136.19,136.16,0.14216157]
[1764059561324,9.63825776,136.18,136.16,0.14216157]
[1764059561525,17.67096647,136.19,136.16,0.14216157]
[1764059562522,25.94712176,136.2,136.16,8.02620362]
[1764059563028,26.63712176,136.2,136.16,8.02620362]
[1764059563728,9.63825776,136.19,136.16,0.14216157]
[1764059563932,10.32825776,136.19,136.16,0.14216157]
[1764059564233,10.32825776,136.18,136.16,0.14216157]
[1764059565038,17.6709866,136.19,136.16,0.14216157]
[1764059565416,9.63825776,136.17,136.13,50.0]
[1764059565736,9.63825776,136.16,136.11,135.21596425]
[1764059565937,9.63825776,136.16,136.11,118.36710025]
[1764059566120,0.69,136.16,136.12,0.54]
[1764059566322,25.94712176,136.17,136.13,0.14216157]
[1764059566517,26.63712176,136.17,136.13,0.14216157]
[1764059566710,26.63712176,136.17,136.13,0.68216157]
[1764059566911,16.998864,136.17,136.15,0.14216157]
[1764059567452,10.32825776,136.16,136.15,0.14216157]
[1764059567612,0.69,136.16,136.15,0.14216157]
[1764059568034,33.98102199,136.17,136.15,0.14216157]
[1764059568332,0.28432314,136.2,136.15,0.14216157]
[1764059568333,10.32825776,136.2,136.15,0.68216157]
[1764059568537,9.63825776,136.19,136.15,8.0269594]
[1764059568737,9.63825776,136.18,136.15,7.4869594]
[1764059568911,10.32825776,136.18,136.15,7.4869594]
[1764059569107,0.69,136.18,136.15,7.4869594]
[1764059569330,16.98111255,136.19,136.17,0.14216157]
[1764059569610,10.32825776,136.19,136.16,0.14216157]
[1764059569920,25.94712176,136.2,136.16,50.14216157]
[1764059570235,0.69,136.23,136.19,0.14216157]
[1764059570619,10.32825776,136.23,136.19,0.68216157]
[1764059570818,9.63825776,136.22,136.19,0.14216157]
[1764059571125,10.32825776,136.22,136.19,0.14216157]
[1764059571329,0.69,136.22,136.19,7.48448807]
[1764059571516,17.66883913,136.23,136.19,0.68216157]
[1764059571718,10.32825776,136.22,136.19,0.14216157]
[1764059572146,9.63825776,136.21,136.19,0.14216157]
[1764059572550,0.69,136.22,136.19,0.14216157]
[1764059572851,0.69,136.22,136.19,7.48475915]
[1764059573056,4.31785615,136.22,136.19,7.48475915]
[1764059573946,10.96843752,136.23,136.21,0.14216157]
[1764059574143,8.03058137,136.23,136.2,0.14216157]
[1764059574344,4.31785615,136.25,136.2,50.68216157]
[1764059574546,3.62785615,136.27,136.23,0.14216157]
[1764059574730,4.31785615,136.28,136.23,0.14216157]
[1764059575041,16.308864,136.27,136.23,0.68216157]
[1764059575253,4.31785615,136.28,136.23,0.68216157]
[1764059575431,4.31785615,136.28,136.25,0.14216157]
[1764059575770,11.65587683,136.28,136.25,0.14216157]
[1764059576250,3.62785615,136.27,136.25,0.14216157]
[1764059576555,10.30750312,136.27,136.25,0.14216157]
[1764059577651,26.59636712,136.29,136.25,0.14216157]
[1764059578160,0.67,136.28,136.25,0.14216157]
[1764059578337,10.28750312,136.28,136.25,0.14216157]
[1764059578536,5.52360713,136.27,136.25,0.14216157]
[1764059578734,6.19360713,136.27,136.25,0.14216157]
[1764059579223,5.52360713,136.27,136.25,0.14216157]
[1764059579847,5.52360713,136.28,136.25,8.02160441]
[1764059580158,21.83247113,136.29,136.25,8.02160441]
[1764059580461,29.83984359,136.29,136.25,7.48160441]
[1764059580759,6.19360713,136.28,136.25,7.48160441]
[1764059580935,6.19360713,136.28,136.25,0.14216157]
[1764059581259,6.19360713,136.27,136.25,0.14216157]
[1764059581637,5.52360713,136.27,136.25,0.14216157]
[1764059581841,6.19360713,136.27,136.25,0.14216157]
[1764059583542,0.67,136.27,136.25,7.48153271]
[1764059583735,5.52360713,136.28,136.25,7.48153271]
[1764059584067,6.19360713,136.31,136.27,0.14216157]
[1764059584231,6.19360713,136.32,136.29,0.14216157]
[1764059584436,0.2,136.33,136.31,0.14216157]
[1764059584664,0.87,136.33,136.31,0.14216157]
[1764059584956,6.39360713,136.33,136.31,0.14216157]
[1764059585256,0.87,136.33,136.31,0.14216157]
[1764059585441,0.67,136.32,136.31,0.14216157]
[1764059586436,0.67,136.32,136.3,0.14216157]
[1764059586632,13.52932142,136.32,136.3,0.14216157]
[1764059586835,0.67,136.32,136.3,0.14216157]
[1764059587874,0.2,136.33,136.3,57.47866603]
[1764059588079,0.87,136.33,136.3,50.14216157]
[1764059588349,0.87,136.33,136.3,57.4787929]
[1764059588545,0.2,136.33,136.3,57.4787929]
[1764059588761,0.2,136.33,136.3,58.0187929]
[1764059589664,0.2,136.33,136.3,57.4787929]
[1764059589864,13.72891157,136.33,136.3,50.14216157]
[1764059590957,6.39360713,136.33,136.3,57.47882434]
[1764059591690,6.39360713,136.33,136.3,50.14216157]
[1764059591887,6.39360713,136.33,136.3,57.47885713]
[1764059592678,6.39360713,136.33,136.29,0.54]
[1764059592679,5.52360713,136.31,136.29,0.14216157]
[1764059592976,6.39360713,136.33,136.29,0.54]
[1764059593182,0.2,136.33,136.32,50.14216157]
[1764059593561,0.2,136.33,136.32,56.2057687]
[1764059593971,0.2,136.33,136.32,63.54144945]
[1764059594674,0.2,136.33,136.32,58.01784232]
[1764059595163,0.0579,136.33,136.32,72.35139437]
[1764059595474,0.0579,136.33,136.32,72.63571751]
[1764059595675,6.25150713,136.33,136.28,57.87749881]
[1764059595876,5.52360713,136.31,136.28,57.87749881]
[1764059596770,5.52360713,136.31,136.29,0.14216157]
[1764059596975,5.52360713,136.32,136.28,57.87749881]
[1764059597177,5.52360713,136.32,136.29,0.14216157]
[1764059597372,24.37191739,136.33,136.29,0.14216157]
[1764059597564,5.52360713,136.32,136.29,7.47919146]
[1764059597966,6.19360713,136.32,136.29,7.47919146]
[1764059598490,23.70191739,136.33,136.29,57.47919146]
[1764059598791,5.52360713,136.32,136.29,57.47919146]
[1764059598998,5.52360713,136.32,136.29,58.01919146]
[1764059602000,5.52360713,136.3,136.23,50.0]
[1764059602177,0.67,136.31,136.23,50.0]
[1764059602178,5.52360713,136.27,136.24,50.0]
[1764059602488,16.308864,136.29,136.24,50.0]
[1764059602691,5.52360713,136.26,136.24,50.0]
[1764059603191,5.52360713,136.26,136.25,0.14216157]
[1764059603691,5.52360713,136.27,136.25,0.14216157]
[1764059603905,6.20360713,136.27,136.25,0.14216157]
[1764059604067,6.20360713,136.27,136.24,57.33997119]
[1764059604384,5.52360713,136.26,136.25,0.14216157]
[1764059604571,6.20360713,136.26,136.25,0.14216157]
[1764059604888,13.54251803,136.26,136.21,0.21324235]
[1764059605093,5.52360713,136.24,136.21,0.21324235]
[1764059605390,6.20360713,136.24,136.23,0.14216157]
[1764059605698,6.20360713,136.24,136.22,50.0]
[1764059605894,5.52360713,136.27,136.26,0.14216157]
[1764059606097,6.20360713,136.27,136.26,0.14216157]
[1764059607173,16.308864,136.24,136.18,100.0]
[1764059607380,5.52360713,136.21,136.2,50.0]
[1764059607580,5.52360713,136.22,136.2,50.0]
[1764059607779,0.68,136.23,136.2,50.0]
[1764059607975,16.308864,136.24,136.2,50.0]
[1764059607976,6.20360713,136.22,136.2,50.0]
[1764059609296,6.20360713,136.22,136.21,0.14216157]
[1764059610295,0.68,136.22,136.21,0.14216157]
[1764059610490,6.20360713,136.22,136.21,0.14216157]
[1764059611979,16.308864,136.24,136.21,0.14216157]
[1764059612187,16.308864,136.24,136.23,0.14216157]
[1764059612385,6.20360713,136.27,136.23,0.14216157]
[1764059612572,18.34634328,136.3,136.26,0.14216157]
[1764059612773,18.34067538,136.31,136.28,0.14216157]
[1764059612774,7.33639799,136.31,136.28,0.14216157]
[1764059613006,0.68,136.3,136.28,0.14216157]
[1764059613204,6.20360713,136.3,136.28,0.14216157]
[1764059613880,5.52360713,136.31,136.28,0.14216157]
[1764059614081,6.20360713,136.32,136.3,0.14216157]
[1764059614398,0.68,136.31,136.24,50.0]
[1764059614694,5.52360713,136.28,136.27,0.14216157]
[1764059615218,5.80793027,136.32,136.27,0.14216157]
[1764059615219,16.988864,136.3,136.27,0.14216157]
[1764059615511,5.52360713,136.31,136.27,8.16046589]
[1764059615714,0.68,136.32,136.3,0.14216157]
[1764059616011,6.20360713,136.32,136.3,0.14216157]
[1764059616176,0.68,136.32,136.3,0.14216157]
[1764059617577,6.20360713,136.32,136.3,0.14216157]
[1764059618603,7.39311914,136.33,136.3,0.14216157]
[1764059618904,6.20360713,136.32,136.3,0.14216157]
[1764059619286,0.68,136.32,136.3,0.14216157]
[1764059619979,13.53938083,136.32,136.3,0.14216157]
[1764059621209,0.68,136.31,136.3,0.14216157]
[1764059621798,5.52360713,136.32,136.3,0.14216157]
[1764059622013,6.20360713,136.32,136.3,0.14216157]
[1764059622882,0.68,136.31,136.3,0.14216157]
[1764059624406,13.53982604,136.31,136.26,100.0]
[1764059624584,5.52360713,136.3,136.26,100.68]
[1764059624795,0.68,136.3,136.29,0.14216157]
[1764059625911,6.20360713,136.3,136.29,0.14216157]
[1764059626113,13.54036428,136.3,136.24,100.0]
[1764059626318,5.52360713,136.28,136.24,107.33993279]
[1764059626498,5.52360713,136.28,136.25,0.14216157]
[1764059626699,0.68,136.28,136.27,0.14216157]
[1764059626905,0.68,136.28,136.26,50.0]
[1764059627306,0.68,136.28,136.27,0.14216157]
[1764059628705,8.01783387,136.28,136.27,0.14216157]
[1764059629815,0.68,136.28,136.25,0.14216157]
[1764059629995,0.68,136.27,136.25,0.14216157]
[1764059630524,16.308864,136.29,136.27,0.14216157]
[1764059630689,0.68,136.3,136.27,0.14216157]
[1764059630892,6.20360713,136.3,136.27,0.14216157]
[1764059631412,0.68,136.29,136.27,0.14216157]
[1764059632514,22.51247113,136.31,136.29,0.14216157]
[1764059632687,16.988864,136.31,136.29,0.14216157]
[1764059635617,0.68,136.31,136.29,0.14216157]
[1764059636021,6.25150713,136.33,136.3,50.0]
[1764059636197,6.25150713,136.33,136.29,7.47931531]
[1764059636397,6.19360713,136.32,136.29,7.47931531]
[1764059636597,2.98842082,136.32,136.29,7.47931531]
[1764059638018,10.32414465,136.32,136.29,7.47931531]
[1764059640619,0.67,136.32,136.31,0.14216157]
[1764059641324,3.68039609,136.33,136.31,0.14216157]
[1764059641529,0.0579,136.33,136.32,53.76465766]
[1764059641713,0.2,136.35,136.34,50.0]
[1764059641912,0.2,136.38,136.37,50.0]
[1764059642228,0.2,136.38,136.37,103.76465766]
[1764059642406,0.2,136.38,136.37,104.44465766]
[1764059642603,0.2,136.41,136.4,50.0]
[1764059642804,0.2,136.41,136.4,53.76465766]
[1764059643003,0.2,136.41,136.4,54.44465766]
[1764059644635,0.2,136.41,136.4,67.74365625]
[1764059645837,0.0579,136.41,136.4,76.83792431]
[1764059649437,0.0579,136.41,136.4,67.74365625]
[1764059649832,0.0579,136.41,136.4,67.60149468]
[1764059650138,0.0579,136.41,136.4,57.33137829]
[1764059650348,0.7279,136.41,136.4,50.14216157]
[1764059650746,0.0579,136.41,136.4,50.0]
[1764059650961,0.0579,136.41,136.4,57.47353986]
[1764059651542,0.0579,136.41,136.4,67.06365625]
[1764059651739,0.0579,136.41,136.4,67.74365625]
[1764059653140,0.0579,136.41,136.4,67.06365625]
[1764059653349,0.0579,136.41,136.4,67.74365625]
[1764059654941,0.0579,136.41,136.4,67.06365625]
[1764059656164,0.0579,136.41,136.4,67.74365625]
[1764059657461,0.0579,136.41,136.4,67.06365625]
[1764059657843,0.0579,136.41,136.4,57.33137829]
[1764059658253,0.0579,136.41,136.4,57.47353986]
[1764059658649,0.7279,136.41,136.4,57.47353986]
[1764059658962,0.0579,136.41,136.4,67.06365625]
[1764059659570,0.7279,136.41,136.38,50.0]
[1764059659773,0.7279,136.41,136.38,57.33241306]
[1764059660362,0.7279,136.41,136.38,66.92252945]
[1764059660567,0.7279,136.41,136.39,0.14216157]
[1764059661272,0.7279,136.41,136.39,7.47375735]
[1764059661952,0.0579,136.41,136.4,50.0]
[1764059662146,0.0579,136.41,136.4,50.14216157]
[1764059663578,0.0579,136.41,136.4,67.06365625]
[1764059664643,0.0579,136.41,136.4,61.08896026]
[1764059664849,0.7179,136.41,136.4,57.47353986]
[1764059665581,0.0579,136.41,136.4,57.47353986]
[1764059665786,0.0579,136.41,136.4,61.08896026]
[1764059666274,0.0579,136.41,136.4,61.75896026]
[1764059666581,0.0579,136.41,136.4,67.73532732]
[1764059666952,0.0579,136.41,136.4,57.47353986]
[1764059667277,0.7179,136.41,136.4,50.14216157]
[1764059669877,0.7179,136.41,136.4,57.47353986]
[1764059670194,0.0579,136.41,136.4,57.47353986]
[1764059672094,0.0579,136.41,136.4,67.73532732]
[1764059673074,0.0579,136.41,136.4,67.06532732]
[1764059673472,0.0579,136.41,136.4,67.73532732]
[1764059673676,0.2,136.46,136.45,7.47085339]
[1764059675578,0.2,136.46,136.45,67.06264085]
[1764059675890,0.2,136.46,136.45,67.73264085]
[1764059676479,0.2,136.46,136.45,67.06264085]
[1764059677391,0.2,136.46,136.45,57.47085339]
[1764059677392,0.86,136.46,136.45,57.47085339]
[1764059677698,0.86,136.46,136.45,7.47085339]
[1764059677902,0.86,136.46,136.45,0.14216157]
[1764059678389,0.86,136.46,136.45,7.47085339]
[1764059682886,0.2,136.46,136.45,17.73264085]
[1764059683085,0.2,136.46,136.45,17.06264085]
[1764059684314,0.2,136.46,136.45,67.73264085]
[1764059684489,0.2,136.47,136.46,59.73394903]
[1764059684698,0.0579,136.47,136.46,69.49821709]
[1764059684900,0.76,136.55,136.53,0.14216157]
[1764059685116,0.76,136.55,136.54,50.0]
[1764059685511,0.76,136.55,136.53,0.14216157]
[1764059685713,10.35178746,136.55,136.53,0.14216157]
[1764059686086,0.66,136.54,136.53,0.14216157]
[1764059687496,0.66,136.54,136.53,50.14216157]
[1764059687694,0.66,136.54,136.53,0.14216157]
[1764059687923,10.25178746,136.54,136.53,0.14216157]
[1764059688122,33.88451259,136.54,136.47,50.0]
[1764059688316,9.59178746,136.51,136.47,57.3274964]
[1764059688508,9.59178746,136.49,136.46,7.32798062]
[1764059688706,9.59178746,136.49,136.45,57.32846983]
[1764059689015,0.66,136.48,136.46,0.14216157]
[1764059689191,0.66,136.48,136.47,50.14216157]
[1764059689821,9.59178746,136.5,136.47,50.0]
[1764059690024,0.66,136.49,136.48,0.14216157]
[1764059690407,10.25178746,136.49,136.48,0.14216157]
[1764059690614,0.66,136.49,136.48,0.14216157]
[1764059691213,0.66,136.49,136.47,50.0]
[1764059691411,9.59178746,136.48,136.44,50.0]
[1764059691639,9.59178746,136.47,136.44,50.0]
[1764059691920,9.59178746,136.47,136.43,7.32959863]
[1764059692121,0.66,136.46,136.44,50.0]
[1764059692320,0.66,136.46,136.44,57.32922334]
[1764059692506,0.66,136.46,136.45,0.14216157]
[1764059694721,0.66,136.46,136.42,116.92187498]
[1764059694722,17.58002751,136.46,136.43,0.14216157]
[1764059694912,10.25178746,136.46,136.43,7.3296864]
[1764059695092,10.27178746,136.45,136.42,57.33014951]
[1764059695296,10.27178746,136.45,136.43,0.14216157]
[1764059695491,7.32818665,136.46,136.43,0.14216157]
[1764059695492,10.27178746,136.44,136.43,0.14216157]
[1764059695708,10.27178746,136.44,136.38,50.0]
[1764059695934,0.68,136.43,136.38,57.33229686]
[1764059696111,9.59178746,136.42,136.38,57.33229686]
[1764059696324,0.68,136.43,136.38,57.33229686]
[1764059696325,9.59178746,136.41,136.38,57.33229686]
[1764059696718,0.66,136.4,136.38,57.33229686]
[1764059697721,0.66,136.4,136.39,0.14216157]
[1764059698430,9.59178746,136.42,136.39,7.47402337]
[1764059698722,0.66,136.42,136.41,0.14216157]
[1764059699730,0.66,136.44,136.41,9.73394903]
[1764059699939,0.66,136.44,136.42,57.33010091]
[1764059700130,25.90065146,136.46,136.42,57.33010091]
[1764059700335,0.66,136.45,136.42,57.33010091]
[1764059701441,0.66,136.46,136.43,0.14216157]
[1764059701645,0.66,136.45,136.43,0.14216157]
[1764059702030,10.25178746,136.45,136.43,0.14216157]
[1764059702219,9.59178746,136.44,136.43,0.14216157]
[1764059702421,10.25178746,136.44,136.43,0.14216157]
[1764059702620,0.66,136.44,136.43,0.14216157]
[1764059703342,0.66,136.44,136.42,0.14216157]
[1764059703519,5.51003699,136.43,136.38,50.0]
[1764059703714,5.51003699,136.41,136.37,7.33292466]
[1764059703941,5.51003699,136.41,136.36,7.33336185]
[1764059703942,5.51003699,136.4,136.36,7.33336185]
[1764059704245,0.66,136.4,136.38,0.14216157]
[1764059704451,0.66,136.4,136.37,50.0]
[1764059704741,0.66,136.4,136.38,0.14216157]
[1764059704944,5.51003699,136.42,136.38,0.14216157]
[1764059705158,0.66,136.41,136.38,0.14216157]
[1764059705323,5.51003699,136.4,136.38,0.14216157]
[1764059705522,0.66,136.41,136.35,50.0]
[1764059705523,5.51003699,136.39,136.35,50.0]
[1764059705722,5.51003699,136.36,136.33,7.33496044]
[1764059705922,5.51003699,136.36,136.32,100.0]
[1764059705923,5.51003699,136.36,136.32,50.0]
[1764059706119,6.17003699,136.35,136.32,50.0]
[1764059706426,0.66,136.34,136.32,50.0]
[1764059706646,0.66,136.34,136.3,5.71003699]
[1764059706647,0.66,136.34,136.3,63.04663298]
[1764059706942,0.66,136.34,136.32,50.0]
[1764059707122,6.17003699,136.34,136.3,50.2]
[1764059707325,0.66,136.34,136.3,63.04676151]
[1764059707522,5.51003699,136.36,136.33,50.0]
[1764059707835,0.28432314,136.38,136.33,50.0]
[1764059707836,0.66,136.38,136.35,0.14216157]
[1764059708047,0.66,136.37,136.35,0.14216157]
[1764059708417,0.66,136.37,136.35,7.47613469]
[1764059708616,6.17003699,136.39,136.35,57.47613469]
[1764059708820,0.66,136.38,136.35,57.47613469]
[1764059709223,6.17003699,136.38,136.35,57.47613469]
[1764059709450,6.17003699,136.38,136.35,50.14216157]
[1764059709628,0.66,136.37,136.35,50.14216157]
[1764059710640,0.66,136.37,136.35,0.14216157]
[1764059710961,6.17003699,136.37,136.35,0.14216157]
[1764059711452,0.66,136.36,136.35,0.14216157]
[1764059713151,6.17003699,136.38,136.36,0.14216157]
[1764059713338,0.66,136.37,136.36,0.14216157]
[1764059713750,5.51003699,136.38,136.36,0.14216157]
[1764059713945,0.66,136.38,136.36,0.14216157]
[1764059714650,6.17003699,136.38,136.36,0.14216157]
[1764059715053,0.66,136.37,136.36,0.14216157]